[Event "NED-ch U20 Girls 2019"]
[Site "Assen"]
[Date "2019.05.02"]
[Round "5.1"]
[White "Monteny, Pascalle"]
[Black "Duson, Robin"]
[Result "0-1"]
[ECO "B47"]
[WhiteElo "1433"]
[BlackElo "1981"]
[Annotator "NA"]
[PlyCount "122"]
[EventDate "2019.04.28"]
[EventType "swiss"]
[EventCountry "NED"]
[SourceTitle "playchess.com"]
[Source "ChessBase"]
[SourceQuality "1"]
[TimeControl "40/5400+30:1800+30"]

1. e4 {[%emt 0:00:00]} c5 {[%emt 0:00:00]} 2. Nf3 {[%emt 0:00:00]} e6 {[%emt 0:00:00]} 3. d4 {[%emt 0:00:15]} cxd4 {[%emt 0:00:02]} 4. Nxd4 {[%emt 0:00:07]} Nc6 {[%emt 0:00:05]} 5. Nc3 {[%emt 0:00:14]} Qc7 {[%emt 0:00:10]} 6. g3 {[%emt 0:00:16]} a6 {[%emt 0:00:10]} 7. Bg2 {[%emt 0:00:29]} Nf6 {[%emt 0:00:07]} 8. O-O {[%emt 0:00:41]} Nxd4 {[%emt 0:00:12]} 9. Qxd4 {[%emt 0:00:18]} Bc5 {[%emt 0:00:06]} 10. Bf4 {[%emt 0:01:14]} d6 {[%emt 0:00:14]} 11. Qd2 {[%emt 0:01:31]} h6 {[%emt 0:04:23]} 12. Rad1 {[%emt 0:04:49]} e5 {[%emt 0:00:53]} 13. Be3 {[%emt 0:00:59]} Be6 {[%emt 0:04:15]} 14. Bxc5 {[%emt 0:16:23]} dxc5 {[%emt 0:00:17]} 15. Nd5 $14 {[%emt 0:17:27]} Bxd5 {[%emt 0:02:38]} 16. exd5 {[%emt 0:01:01]} Qd6 {[%emt 0:01:05]} 17. Rfe1 {[%emt 0:08:19]} O-O {[%emt 0:00:20]} 18. Qe3 {[%emt 0:06:29]} Rfe8 {[%emt 0:07:09]} 19. c4 {[%emt 0:14:01]} b5 {[%emt 0:04:06]} 20. b3 {[%emt 0:02:02]} Rab8 {[%emt 0:02:27]} 21. Rb1 {[%emt 0:02:58]} Nd7 {[%emt 0:06:22]} 22. Bh3 {[%emt 0:04:29]} Nb6 {[%emt 0:06:19]} 23. Bf1 {[%emt 0:03:58]} e4 {[%emt 0:14:57]} 24. a3 {[%emt 0:07:54]} a5 {[%emt 0:04:18]} 25. Rec1 {[%emt 0:05:13]} Rbc8 {[%emt 0:05:22]} 26. Re1 {[%emt 0:00:57]} a4 {[%emt 0:02:33]} 27. bxa4 {[%emt 0:00:46]} bxc4 {[%emt 0:01:15]} 28. Red1 {[%emt 0:00:32]} Re5 {[%emt 0:05:08]} 29. Qc3 {[%emt 0:00:30]} Nxd5 {[%emt 0:09:11]} 30. Qxc4 {[%emt 0:00:06]} Qe6 {[%emt 0:06:50]} 31. Bg2 {[%emt 0:00:49]} Ne7 {[%emt 0:07:36]} 32. Qxe6 {[%emt 0:01:13]} Rxe6 {[%emt 0:00:31]} 33. a5 {[%emt 0:00:00]} c4 {[%emt 0:00:40]} 34. Rdc1 {[%emt 0:00:22]} f5 {[%emt 0:01:38]} 35. Bf1 {[%emt 0:00:26]} Rec6 {[%emt 0:01:44]} 36. Rb6 {[%emt 0:00:30]} c3 {[%emt 0:01:06]} 37. Rxc6 {[%emt 0:00:35]} Rxc6 {[%emt 0:00:05]} 38. a6 {[%emt 0:00:31]} Nc8 {[%emt 0:00:31]} 39. Bb5 {[%emt 0:00:28]} Rc7 {[%emt 0:00:40]} 40. Kf1 {[%emt 0:00:31]} Kf7 {[%emt 0:00:46]} 41. Ke2 {[%emt 0:04:19]} Ke6 {[%emt 0:01:36]} 42. Kd1 {[%emt 0:07:12]} Na7 {[%emt 0:05:33]} 43. a4 {[%emt 0:03:28]} Kd5 {[%emt 0:07:03]} 44. Kc2 {[%emt 0:02:52]} Kc5 {[%emt 0:01:26]} 45. Rb1 {[%emt 0:01:57]} Nxb5 {[%emt 0:07:12]} 46. axb5 {[%emt 0:00:35]} Kb6 {[%emt 0:00:09]} 47. Rb3 {[%emt 0:00:54]} Rc5 {[%emt 0:00:53]} 48. h4 {[%emt 0:12:07]} g5 {[%emt 0:00:32]} 49. hxg5 {[%emt 0:00:27]} hxg5 {[%emt 0:00:04]} 50. Rxc3 {[%emt 0:00:11]} Rxb5 {[%emt 0:00:11]} 51. Rb3 {[%emt 0:01:09]} Kxa6 {[%emt 0:00:27]} 52. Ra3+ {[%emt 0:00:47]} Kb6 {[%emt 0:00:06]} 53. Rb3 {[%emt 0:00:18]} Rxb3 {[%emt 0:00:16]} 54. Kxb3 {[%emt 0:00:04]} Kc5 {[%emt 0:00:41]} 55. Kc3 {[%emt 0:00:34]} Kd5 {[%emt 0:00:13]} 56. Kd2 {[%emt 0:00:48]} Kd4 {[%emt 0:00:05]} 57. Ke2 {[%emt 0:00:28]} f4 {[%emt 0:01:09]} 58. gxf4 {[%emt 0:00:10]} gxf4 {[%emt 0:00:01]} 59. Kd2 {[%emt 0:00:12]} f3 {[%emt 0:02:01]} 60. Ke1 {[%emt 0:01:21]} e3 {[%emt 0:00:47]} 61. Kf1 {[%emt 0:00:37]} e2+ {[%emt 0:00:26]} 0-1

[Event "NED-ch U20 Girls 2019"]
[Site "Assen"]
[Date "2019.05.02"]
[Round "5.2"]
[White "Waardenburg, Feline"]
[Black "Basa, Manasvita"]
[Result "1-0"]
[ECO "D35"]
[WhiteElo "1742"]
[BlackElo "1532"]
[Annotator "NA"]
[PlyCount "61"]
[EventDate "2019.04.28"]
[EventType "swiss"]
[EventCountry "NED"]
[SourceTitle "playchess.com"]
[Source "ChessBase"]
[SourceQuality "1"]
[TimeControl "40/5400+30:1800+30"]

1. d4 {[%emt 0:00:00]} d5 {[%emt 0:00:00]} 2. c4 {[%emt 0:00:00]} e6 {[%emt 0:00:00]} 3. Nc3 {[%emt 0:00:00]} Be7 {[%emt 0:00:00]} 4. Qc2 {[%emt 0:00:22]} Nf6 {[%emt 0:00:00]} 5. Bg5 {[%emt 0:00:29]} O-O {[%emt 0:00:13]} 6. e3 {[%emt 0:00:46]} b6 {[%emt 0:01:21]} 7. cxd5 {[%emt 0:02:42]} exd5 {[%emt 0:00:41]} 8. Bd3 {[%emt 0:04:09]} h6 {[%emt 0:01:16]} 9. Bh4 {[%emt 0:01:44]} Bb7 {[%emt 0:00:18]} 10. Nge2 {[%emt 0:02:10]} Nbd7 {[%emt 0:01:05]} 11. O-O {[%emt 0:01:36]} c5 {[%emt 0:01:20]} 12. Bg3 {[%emt 0:09:07]} a6 {[%emt 0:01:07]} 13. a4 {[%emt 0:02:56]} Rc8 {[%emt 0:06:36]} 14. Bf5 {[%emt 0:04:03]} cxd4 {[%emt 0:27:53]} 15. Nxd4 {[%emt 0:06:49]} Ne4 {[%emt 0:01:05]} 16. Bf4 {[%emt 0:06:06]} Bb4 {[%emt 0:09:59]} 17. Nde2 {[%emt 0:01:41]} Re8 {[%emt 0:03:42]} 18. Rfd1 {[%emt 0:04:08]} Qe7 {[%emt 0:19:24]} 19. Qb3 {[%emt 0:05:22]} Ba5 {[%emt 0:15:50]} 20. Nxe4 {[%emt 0:04:03]} Nc5 {[%emt 0:03:21]} 21. Nxc5 {[%emt 0:00:57]} Rxc5 {[%emt 0:00:09]} 22. Rac1 {[%emt 0:03:58]} Rxc1 {[%emt 0:04:21]} 23. Rxc1 {[%emt 0:00:07]} Qf6 {[%emt 0:00:45]} 24. Bd3 {[%emt 0:05:14]} g5 {[%emt 0:00:46]} 25. Bg3 {[%emt 0:00:49]} h5 {[%emt 0:00:16]} 26. h3 {[%emt 0:00:26]} h4 {[%emt 0:00:18]} 27. Bh2 {[%emt 0:00:14]} Bd2 {[%emt 0:00:44]} 28. Rd1 {[%emt 0:01:51]} Bxe3 {[%emt 0:00:35]} 29. fxe3 {[%emt 0:01:38]} Rxe3 {[%emt 0:00:04]} 30. Bh7+ {[%emt 0:00:48]} Kxh7 {[%emt 0:00:25]} 31. Qxe3 {[%emt 0:00:11]} 1-0

[Event "NED-ch U20 Girls 2019"]
[Site "Assen"]
[Date "2019.05.02"]
[Round "5.3"]
[White "Van de Poel, Wyona"]
[Black "Warnaar, Alisha"]
[Result "0-1"]
[ECO "B53"]
[WhiteElo "1584"]
[BlackElo "1910"]
[Annotator "NA"]
[PlyCount "48"]
[EventDate "2019.04.28"]
[EventType "swiss"]
[EventCountry "NED"]
[SourceTitle "playchess.com"]
[Source "ChessBase"]
[SourceQuality "1"]
[TimeControl "40/5400+30:1800+30"]

1. e4 {[%emt 0:00:00]} c5 {[%emt 0:00:00]} 2. Nf3 {[%emt 0:00:00]} d6 {[%emt 0:00:00]} 3. d4 {[%emt 0:00:00]} cxd4 {[%emt 0:00:00]} 4. Qxd4 {[%emt 0:00:33]} Nc6 {[%emt 0:00:11]} 5. Bb5 {[%emt 0:00:38]} Bd7 {[%emt 0:00:11]} 6. Bxc6 {[%emt 0:00:25]} Bxc6 {[%emt 0:00:55]} 7. Nc3 {[%emt 0:01:25]} Nf6 {[%emt 0:01:24]} 8. Bg5 {[%emt 0:01:55]} e6 {[%emt 0:03:46]} 9. O-O-O {[%emt 0:03:03]} Be7 {[%emt 0:01:15]} 10. Rhe1 {[%emt 0:03:28]} Qa5 {[%emt 0:12:55]} 11. Qd2 {[%emt 0:09:31]} O-O {[%emt 0:08:34]} 12. Kb1 {[%emt 0:03:55]} Qb6 $11 {[%emt 0:01:04]} 13. Nd4 {[%emt 0:01:56]} h6 {[%emt 0:01:47]} 14. Be3 {[%emt 0:02:48]} Qa6 {[%emt 0:00:54]} 15. f3 {[%emt 0:01:14]} d5 {[%emt 0:08:51]} 16. e5 {[%emt 0:07:47]} Nd7 {[%emt 0:00:22]} 17. Nb3 {[%emt 0:04:50]} Nxe5 {[%emt 0:08:04]} 18. Bxh6 {[%emt 0:01:33]} Nc4 {[%emt 0:01:33]} 19. Qf4 {[%emt 0:02:14]} Bf6 {[%emt 0:06:08]} 20. Qg3 {[%emt 0:07:15]} Qb6 {[%emt 0:04:19]} 21. Bc1 {[%emt 0:12:03]} a5 {[%emt 0:01:23]} 22. f4 {[%emt 0:10:00]} a4 {[%emt 0:00:25]} 23. Be3 {[%emt 0:07:19]} Nxe3 {[%emt 0:00:31]} 24. Rxe3 {[%emt 0:00:15]} axb3 {[%emt 0:00:08]} 0-1

[Event "NED-ch U20 Girls 2019"]
[Site "Assen"]
[Date "2019.05.02"]
[Round "5.4"]
[White "Waardenburg, Marlinde"]
[Black "Koning, Femke"]
[Result "1-0"]
[ECO "B23"]
[WhiteElo "1706"]
[BlackElo "1566"]
[Annotator "NA"]
[PlyCount "105"]
[EventDate "2019.04.28"]
[EventType "swiss"]
[EventCountry "NED"]
[SourceTitle "playchess.com"]
[Source "ChessBase"]
[SourceQuality "1"]
[TimeControl "40/5400+30:1800+30"]

1. e4 {[%emt 0:00:00]} c5 {[%emt 0:00:00]} 2. Nc3 {[%emt 0:00:00]} Nc6 {[%emt 0:00:00]} 3. f4 {[%emt 0:00:00]} g6 {[%emt 0:00:09]} 4. Nf3 {[%emt 0:00:06]} Bg7 {[%emt 0:00:13]} 5. Bc4 {[%emt 0:01:47]} e6 {[%emt 0:00:26]} 6. O-O {[%emt 0:01:14]} Nge7 {[%emt 0:00:18]} 7. d3 {[%emt 0:04:39]} O-O {[%emt 0:00:22]} 8. a3 {[%emt 0:02:55]} b6 {[%emt 0:01:31]} 9. Qe1 {[%emt 0:01:40]} Bb7 {[%emt 0:05:40]} 10. Qh4 {[%emt 0:03:20]} d5 {[%emt 0:08:22]} 11. Ba2 {[%emt 0:03:07]} Nd4 {[%emt 0:07:08]} 12. Qf2 {[%emt 0:17:43]} dxe4 {[%emt 0:13:20]} 13. dxe4 {[%emt 0:04:45]} Nec6 {[%emt 0:05:21]} 14. Nd1 {[%emt 0:07:48]} Nxf3+ {[%emt 0:14:11]} 15. Qxf3 {[%emt 0:04:25]} Qc7 {[%emt 0:05:47]} 16. c3 {[%emt 0:01:15]} Rad8 {[%emt 0:01:18]} 17. Nf2 {[%emt 0:01:04]} Rd7 {[%emt 0:04:33]} 18. Qh3 {[%emt 0:01:27]} Ne7 {[%emt 0:05:28]} 19. Re1 {[%emt 0:09:56]} Bc6 {[%emt 0:02:48]} 20. Bb3 {[%emt 0:03:18]} Qb7 {[%emt 0:04:10]} 21. Qg3 {[%emt 0:05:47]} Rfd8 {[%emt 0:01:41]} 22. Bc2 {[%emt 0:03:51]} Nc8 {[%emt 0:04:21]} 23. Ng4 {[%emt 0:03:44]} Nd6 {[%emt 0:02:52]} 24. Nf2 {[%emt 0:05:41]} Ne8 {[%emt 0:00:54]} 25. f5 {[%emt 0:01:58]} exf5 {[%emt 0:01:48]} 26. exf5 {[%emt 0:00:25]} Nf6 {[%emt 0:01:38]} 27. fxg6 {[%emt 0:01:23]} fxg6 {[%emt 0:00:14]} 28. Bg5 {[%emt 0:01:04]} Nh5 {[%emt 0:02:51]} 29. Qh3 {[%emt 0:00:55]} Rf8 {[%emt 0:00:32]} 30. Be4 {[%emt 0:02:05]} Rdf7 {[%emt 0:00:51]} 31. Bxc6 {[%emt 0:00:57]} Qxc6 {[%emt 0:00:01]} 32. Ng4 {[%emt 0:01:40]} Qd7 {[%emt 0:01:51]} 33. Bh6 {[%emt 0:02:41]} Qf5 {[%emt 0:01:01]} 34. Qh4 {[%emt 0:02:13]} Nf6 {[%emt 0:01:35]} 35. Bxg7 {[%emt 0:00:47]} Kxg7 {[%emt 0:01:56]} 36. Nh6 {[%emt 0:00:22]} Qh5 {[%emt 0:01:21]} 37. Qxh5 {[%emt 0:00:19]} Nxh5 {[%emt 0:00:01]} 38. Nxf7 {[%emt 0:00:09]} Rxf7 {[%emt 0:00:00]} 39. Rf1 {[%emt 0:00:49]} Rd7 {[%emt 0:00:22]} 40. Rad1 {[%emt 0:00:32]} Re7 {[%emt 0:00:41]} 41. Rd6 {[%emt 0:03:54]} Kh6 {[%emt 0:08:29]} 42. g4 {[%emt 0:06:37]} Ng7 {[%emt 0:00:22]} 43. Rdf6 {[%emt 0:02:01]} Ne8 {[%emt 0:01:42]} 44. Rf7 {[%emt 0:01:10]} Re4 {[%emt 0:02:11]} 45. h3 {[%emt 0:01:43]} Re3 {[%emt 0:01:03]} 46. Kg2 {[%emt 0:01:03]} a5 {[%emt 0:01:30]} 47. Rb7 {[%emt 0:01:32]} Re6 {[%emt 0:00:32]} 48. Rff7 {[%emt 0:03:43]} Nf6 {[%emt 0:00:25]} 49. h4 {[%emt 0:00:32]} g5 {[%emt 0:00:37]} 50. hxg5+ {[%emt 0:01:08]} Kxg5 {[%emt 0:00:06]} 51. Rg7+ {[%emt 0:00:58]} Kf4 {[%emt 0:01:01]} 52. Rbf7 {[%emt 0:01:41]} Ke5 {[%emt 0:02:12]} 53. Re7 {[%emt 0:01:46]} 1-0

[Event "NED-ch U20 Girls 2019"]
[Site "Assen"]
[Date "2019.05.03"]
[Round "6.1"]
[White "Warnaar, Alisha"]
[Black "Duson, Robin"]
[Result "1-0"]
[ECO "C10"]
[WhiteElo "1910"]
[BlackElo "1981"]
[Annotator "NA"]
[PlyCount "51"]
[EventDate "2019.04.28"]
[EventType "swiss"]
[EventCountry "NED"]
[SourceTitle "playchess.com"]
[Source "ChessBase"]
[SourceQuality "1"]
[TimeControl "40/5400+30:1800+30"]

1. e4 {[%emt 0:00:00]} e6 {[%emt 0:00:00]} 2. d4 {[%emt 0:00:00]} d5 {[%emt 0:00:00]} 3. Nd2 {[%emt 0:00:00]} dxe4 {[%emt 0:00:00]} 4. Nxe4 {[%emt 0:00:00]} Nd7 {[%emt 0:00:00]} 5. Nf3 {[%emt 0:00:36]} Ngf6 {[%emt 0:00:03]} 6. Nxf6+ {[%emt 0:00:34]} Nxf6 {[%emt 0:00:10]} 7. Bd3 {[%emt 0:02:02]} c5 {[%emt 0:00:37]} 8. O-O {[%emt 0:03:28]} cxd4 {[%emt 0:01:41]} 9. Nxd4 {[%emt 0:00:22]} Bc5 {[%emt 0:00:25]} 10. Nb3 {[%emt 0:01:57]} Bb6 {[%emt 0:05:43]} 11. Bg5 {[%emt 0:00:57]} O-O {[%emt 0:01:33]} 12. Qf3 {[%emt 0:05:21]} Qd5 {[%emt 0:12:18]} 13. Qf4 {[%emt 0:17:07]} Bc7 {[%emt 0:10:04]} 14. Qh4 {[%emt 0:01:37]} h6 {[%emt 0:08:05]} 15. Bxf6 {[%emt 0:00:29]} gxf6 {[%emt 0:00:05]} 16. Qxh6 {[%emt 0:02:16]} f5 {[%emt 0:00:16]} 17. Rfe1 {[%emt 0:02:57]} Rd8 {[%emt 0:08:40]} 18. Re3 {[%emt 0:02:51]} b6 {[%emt 0:05:14]} 19. Rh3 {[%emt 0:00:35]} Be5 {[%emt 0:06:57]} 20. Re1 {[%emt 0:01:44]} Bb7 {[%emt 0:01:52]} 21. Bf1 {[%emt 0:00:39]} f4 {[%emt 0:03:52]} 22. Rh5 {[%emt 0:01:40]} Bg7 {[%emt 0:03:50]} 23. Qh7+ {[%emt 0:00:08]} Kf8 {[%emt 0:00:03]} 24. Rxd5 {[%emt 0:00:07]} Rxd5 {[%emt 0:00:04]} 25. Qe4 {[%emt 0:01:49]} Rad8 {[%emt 0:02:30]} 26. Qxf4 {[%emt 0:01:41]} 1-0

[Event "NED-ch U20 Girls 2019"]
[Site "Assen"]
[Date "2019.05.03"]
[Round "6.2"]
[White "Koning, Femke"]
[Black "Waardenburg, Feline"]
[Result "0-1"]
[ECO "B12"]
[WhiteElo "1566"]
[BlackElo "1742"]
[Annotator "NA"]
[PlyCount "104"]
[EventDate "2019.04.28"]
[EventType "swiss"]
[EventCountry "NED"]
[SourceTitle "playchess.com"]
[Source "ChessBase"]
[SourceQuality "1"]
[TimeControl "40/5400+30:1800+30"]

1. e4 {[%emt 0:00:00]} c6 {[%emt 0:00:00]} 2. d4 {[%emt 0:00:00]} d5 {[%emt 0:00:00]} 3. e5 {[%emt 0:00:00]} Bf5 {[%emt 0:00:00]} 4. h4 {[%emt 0:00:23]} h5 {[%emt 0:02:39]} 5. Bd3 {[%emt 0:02:56]} Bxd3 {[%emt 0:02:05]} 6. Qxd3 {[%emt 0:00:02]} e6 {[%emt 0:01:32]} 7. Ne2 {[%emt 0:02:51]} Nd7 {[%emt 0:03:59]} 8. Qb3 {[%emt 0:10:08]} Qc7 {[%emt 0:02:52]} 9. Bf4 {[%emt 0:03:34]} Ne7 {[%emt 0:02:58]} 10. c3 {[%emt 0:01:53]} Nf5 {[%emt 0:05:11]} 11. Ng3 {[%emt 0:08:45]} Nxg3 {[%emt 0:02:16]} 12. Bxg3 {[%emt 0:05:10]} Be7 {[%emt 0:01:26]} 13. Nd2 {[%emt 0:03:02]} g5 {[%emt 0:10:32]} 14. hxg5 {[%emt 0:03:15]} Bxg5 {[%emt 0:00:31]} 15. Nf3 {[%emt 0:00:17]} Be7 {[%emt 0:00:44]} 16. Qc2 {[%emt 0:06:38]} O-O-O {[%emt 0:01:26]} 17. O-O-O {[%emt 0:02:15]} Rdg8 {[%emt 0:01:46]} 18. Rdg1 {[%emt 0:05:10]} Qa5 {[%emt 0:02:28]} 19. Kb1 {[%emt 0:04:27]} Nb6 {[%emt 0:07:03]} 20. b3 {[%emt 0:05:18]} Qb5 {[%emt 0:04:08]} 21. Ka1 {[%emt 0:02:21]} a5 {[%emt 0:05:02]} 22. a4 {[%emt 0:01:37]} Qa6 {[%emt 0:01:51]} 23. Bh4 {[%emt 0:02:30]} Bxh4 {[%emt 0:04:56]} 24. Rxh4 {[%emt 0:00:48]} Na8 {[%emt 0:01:32]} 25. g3 {[%emt 0:01:02]} Rg4 {[%emt 0:08:14]} 26. Rxg4 {[%emt 0:02:55]} hxg4 {[%emt 0:00:30]} 27. Nh4 {[%emt 0:00:01]} Nc7 {[%emt 0:00:46]} 28. Qd1 {[%emt 0:01:45]} Rg8 {[%emt 0:00:47]} 29. Ng2 {[%emt 0:00:29]} b5 {[%emt 0:01:15]} 30. Ne3 {[%emt 0:01:43]} Kd8 {[%emt 0:03:53]} 31. Nxg4 {[%emt 0:02:39]} bxa4 {[%emt 0:00:44]} 32. Nf6 {[%emt 0:01:55]} Rh8 {[%emt 0:01:26]} 33. Qc2 {[%emt 0:08:08]} a3 {[%emt 0:03:28]} 34. c4 {[%emt 0:04:06]} Qb6 {[%emt 0:02:34]} 35. c5 {[%emt 0:02:01]} Qb4 {[%emt 0:00:25]} 36. Qd3 {[%emt 0:02:08]} Nb5 {[%emt 0:00:36]} 37. Ka2 {[%emt 0:03:09]} Nc3+ {[%emt 0:02:10]} 38. Ka1 {[%emt 0:00:06]} Qxb3 {[%emt 0:00:53]} 39. Qd2 {[%emt 0:00:27]} Ke7 {[%emt 0:01:42]} 40. Rc1 {[%emt 0:01:51]} Nb5 {[%emt 0:02:20]} 41. Ng4 {[%emt 0:06:55]} Rg8 {[%emt 0:01:16]} 42. Ne3 {[%emt 0:01:37]} Rh8 {[%emt 0:01:53]} 43. Rb1 {[%emt 0:04:41]} Qa4 {[%emt 0:00:42]} 44. Nc2 {[%emt 0:01:22]} a2 {[%emt 0:01:04]} 45. Rc1 {[%emt 0:01:18]} Rh2 {[%emt 0:04:04]} 46. Re1 {[%emt 0:01:37]} Qb3 {[%emt 0:02:19]} 47. Rc1 {[%emt 0:01:41]} Kd7 {[%emt 0:07:33]} 48. Ne3 {[%emt 0:01:21]} Qa3 {[%emt 0:05:24]} 49. Ng4 {[%emt 0:04:50]} Rh8 {[%emt 0:01:04]} 50. Rd1 {[%emt 0:00:18]} Qb3 {[%emt 0:05:00]} 51. Re1 {[%emt 0:02:53]} Na3 {[%emt 0:01:35]} 52. Rc1 {[%emt 0:02:12]} Qb1+ {[%emt 0:00:25]} 0-1

[Event "NED-ch U20 Girls 2019"]
[Site "Assen"]
[Date "2019.05.03"]
[Round "6.3"]
[White "Van de Poel, Wyona"]
[Black "Waardenburg, Marlinde"]
[Result "1/2-1/2"]
[ECO "C02"]
[WhiteElo "1584"]
[BlackElo "1706"]
[Annotator "NA"]
[PlyCount "60"]
[EventDate "2019.04.28"]
[EventType "swiss"]
[EventCountry "NED"]
[SourceTitle "playchess.com"]
[Source "ChessBase"]
[SourceQuality "1"]
[TimeControl "40/5400+30:1800+30"]

1. e4 {[%emt 0:00:00]} e6 {[%emt 0:00:00]} 2. d4 {[%emt 0:00:00]} d5 {[%emt 0:00:00]} 3. e5 {[%emt 0:00:33]} c5 {[%emt 0:00:29]} 4. Be3 {[%emt 0:02:38]} Nc6 {[%emt 0:03:14]} 5. c3 {[%emt 0:04:25]} Bd7 {[%emt 0:01:47]} 6. f4 {[%emt 0:03:08]} Qb6 {[%emt 0:08:53]} 7. Qb3 {[%emt 0:13:56]} Qxb3 {[%emt 0:10:15]} 8. axb3 {[%emt 0:00:19]} cxd4 {[%emt 0:00:23]} 9. cxd4 {[%emt 0:00:08]} Nb4 {[%emt 0:04:09]} 10. Kd2 {[%emt 0:05:01]} Ne7 {[%emt 0:05:20]} 11. g4 {[%emt 0:07:17]} h5 {[%emt 0:02:24]} 12. g5 {[%emt 0:08:45]} Nf5 {[%emt 0:03:46]} 13. Bf2 {[%emt 0:01:12]} Nc6 {[%emt 0:11:53]} 14. Nf3 {[%emt 0:06:58]} Bb4+ {[%emt 0:03:21]} 15. Nc3 {[%emt 0:04:10]} O-O {[%emt 0:06:10]} 16. Kd3 {[%emt 0:04:34]} Rfc8 {[%emt 0:05:52]} 17. Nh4 {[%emt 0:03:06]} Nxh4 {[%emt 0:03:58]} 18. Bxh4 {[%emt 0:00:33]} Na5 {[%emt 0:00:25]} 19. Kc2 {[%emt 0:04:53]} Rc7 {[%emt 0:00:58]} 20. Be1 {[%emt 0:01:05]} Rac8 {[%emt 0:01:17]} 21. Rg1 {[%emt 0:01:59]} Be8 {[%emt 0:06:49]} 22. Bh3 {[%emt 0:02:18]} g6 {[%emt 0:02:03]} 23. Rg3 {[%emt 0:01:17]} b6 {[%emt 0:03:41]} 24. Bf1 {[%emt 0:00:42]} Ra8 {[%emt 0:07:21]} 25. Be2 {[%emt 0:02:15]} Rac8 {[%emt 0:02:30]} 26. Ba6 {[%emt 0:00:39]} Rb8 {[%emt 0:00:23]} 27. Be2 {[%emt 0:00:20]} Bf8 {[%emt 0:01:03]} 28. Bd1 {[%emt 0:01:41]} Nc6 {[%emt 0:01:07]} 29. Kd3 {[%emt 0:01:21]} Na5 {[%emt 0:01:32]} 30. Na4 {[%emt 0:04:40]} Nc6 {[%emt 0:01:18]} 1/2-1/2

[Event "NED-ch U20 Girls 2019"]
[Site "Assen"]
[Date "2019.05.03"]
[Round "6.4"]
[White "Basa, Manasvita"]
[Black "Monteny, Pascalle"]
[Result "0-1"]
[ECO "C29"]
[WhiteElo "1532"]
[BlackElo "1433"]
[Annotator "NA"]
[PlyCount "114"]
[EventDate "2019.04.28"]
[EventType "swiss"]
[EventCountry "NED"]
[SourceTitle "playchess.com"]
[Source "ChessBase"]
[SourceQuality "1"]
[TimeControl "40/5400+30:1800+30"]

1. e4 {[%emt 0:00:00]} e5 {[%emt 0:00:00]} 2. Nc3 {[%emt 0:00:00]} Nf6 {[%emt 0:00:00]} 3. f4 {[%emt 0:00:00]} d5 {[%emt 0:00:09]} 4. fxe5 {[%emt 0:00:00]} Nxe4 {[%emt 0:00:31]} 5. Nf3 {[%emt 0:00:24]} Be7 {[%emt 0:02:03]} 6. d4 {[%emt 0:01:47]} Nxc3 {[%emt 0:17:37]} 7. bxc3 {[%emt 0:00:08]} O-O {[%emt 0:03:26]} 8. Bd3 {[%emt 0:01:14]} c5 {[%emt 0:10:56]} 9. O-O {[%emt 0:08:11]} Nc6 {[%emt 0:05:37]} 10. Be3 {[%emt 0:08:05]} b6 {[%emt 0:06:30]} 11. Qd2 {[%emt 0:14:55]} cxd4 {[%emt 0:15:45]} 12. cxd4 {[%emt 0:01:49]} Nb4 {[%emt 0:03:36]} 13. Be2 {[%emt 0:03:10]} Bf5 {[%emt 0:10:21]} 14. Ng5 {[%emt 0:03:08]} Bg6 {[%emt 0:07:01]} 15. Nh3 {[%emt 0:20:06]} Nxc2 {[%emt 0:01:32]} 16. Rac1 {[%emt 0:00:07]} Bb4 {[%emt 0:01:40]} 17. Qd1 {[%emt 0:02:59]} Nxe3 {[%emt 0:00:09]} 18. Qb3 {[%emt 0:00:24]} Nxf1 {[%emt 0:00:39]} 19. Rxf1 {[%emt 0:00:40]} Be7 {[%emt 0:01:16]} 20. Nf4 {[%emt 0:01:32]} Be4 {[%emt 0:03:06]} 21. Bf3 {[%emt 0:03:42]} Bxf3 {[%emt 0:00:45]} 22. Rxf3 {[%emt 0:00:07]} Qd7 {[%emt 0:03:17]} 23. Rg3 {[%emt 0:04:25]} Bh4 {[%emt 0:01:59]} 24. Rh3 {[%emt 0:00:38]} Bg5 {[%emt 0:00:31]} 25. Nh5 {[%emt 0:03:31]} Rac8 {[%emt 0:01:31]} 26. Rg3 {[%emt 0:01:07]} Rc1+ {[%emt 0:00:39]} 27. Kf2 {[%emt 0:00:05]} Qf5+ {[%emt 0:00:30]} 28. Rf3 {[%emt 0:00:19]} Qc2+ {[%emt 0:00:24]} 29. Kg3 {[%emt 0:00:30]} Qxb3 {[%emt 0:00:31]} 30. axb3 {[%emt 0:00:08]} Rd1 {[%emt 0:00:49]} 31. h4 {[%emt 0:02:11]} Be7 {[%emt 0:00:33]} 32. Nf4 {[%emt 0:01:34]} Rxd4 {[%emt 0:01:08]} 33. h5 {[%emt 0:02:34]} Re4 {[%emt 0:00:57]} 34. Nxd5 {[%emt 0:00:40]} Rxe5 {[%emt 0:00:11]} 35. Rd3 {[%emt 0:00:57]} Bd6 {[%emt 0:01:11]} 36. Kg4 {[%emt 0:01:26]} Rd8 {[%emt 0:00:24]} 37. g3 {[%emt 0:03:06]} Bc7 {[%emt 0:00:32]} 38. Nf4 {[%emt 0:00:35]} Rxd3 {[%emt 0:00:14]} 39. Nxd3 {[%emt 0:00:02]} Re3 {[%emt 0:00:11]} 40. Nf4 {[%emt 0:00:44]} Bxf4 {[%emt 0:00:08]} 41. gxf4 {[%emt 0:30:05]} g6 {[%emt 0:31:39]} 42. h6 {[%emt 0:00:31]} f5+ {[%emt 0:00:23]} 43. Kg5 {[%emt 0:00:07]} Kf7 {[%emt 0:00:16]} 44. b4 {[%emt 0:00:16]} Rg3+ {[%emt 0:00:15]} 45. Kh4 {[%emt 0:00:05]} Rg4+ {[%emt 0:00:18]} 46. Kh3 {[%emt 0:00:07]} Ke6 {[%emt 0:00:35]} 47. b5 {[%emt 0:00:11]} Rxf4 {[%emt 0:00:30]} 48. Kg3 {[%emt 0:00:12]} Ke5 {[%emt 0:00:06]} 49. Kg2 {[%emt 0:00:14]} Ke4 {[%emt 0:00:13]} 50. Kg3 {[%emt 0:00:07]} Ke3 {[%emt 0:01:05]} 51. Kh3 {[%emt 0:00:12]} Rg4 {[%emt 0:00:31]} 52. Kh2 {[%emt 0:00:07]} Kf2 {[%emt 0:00:52]} 53. Kh3 {[%emt 0:00:08]} Rg5 {[%emt 0:00:14]} 54. Kh4 {[%emt 0:00:14]} Rg1 {[%emt 0:00:34]} 55. Kh3 {[%emt 0:00:31]} Kf3 {[%emt 0:00:23]} 56. Kh4 {[%emt 0:00:34]} f4 {[%emt 0:00:13]} 57. Kh3 {[%emt 0:00:10]} Rh1# {[%emt 0:02:04]} 0-1